bitfinex/quotes_ETHUSD_20250123
["timestamp","ask_amount","ask_price","bid_price","bid_amount"]
[1737659974477,3.11118,3214.3,3213.5,3.1118]
[1737659974670,3.11138,3214.1,3213.5,0.55]
[1737659974870,3.11113,3214.3,3213.6,3.11177]
[1737659975070,3.11113,3214.3,3213.6,6.22347]
[1737659975372,3.11113,3214.3,3213.5,1.10820067]
[1737659975373,3.72144117,3214.7,3213.9,3.11139]
[1737659975576,3.11054,3214.9,3214.1,0.7858]
[1737659975761,3.11038,3215.1,3214.4,3.11092]
[1737659975945,3.11017,3215.3,3214.7,3.11068]
[1737659976348,3.11017,3215.3,3214.8,35.0]
[1737659976550,3.11017,3215.3,3214.9,0.7647]
[1737659976877,3.11034,3215.1,3214.9,0.7647]
[1737659977032,3.56616698,3215.4,3214.5,0.7547]
[1737659977243,0.8022,3215.1,3214.1,0.7547]
[1737659977442,3.11075,3214.7,3213.6,35.7547]
[1737659977768,0.03888867,3214.6,3213.6,0.7547]
[1737659977968,3.14969867,3214.6,3213.6,0.7547]
[1737659978189,3.11081,3214.6,3213.6,0.7547]
[1737659978488,3.46090075,3214.5,3213.6,0.7547]
[1737659978995,3.11126,3214.2,3213.1,3.11221]
[1737659979304,3.1111,3214.3,3213.2,3.88445]
[1737659979305,3.11115,3214.3,3213.2,3.88445]
[1737659979462,3.11115,3214.3,3213.3,3.11204]
[1737659979650,3.11115,3214.3,3213.2,35.7723]
[1737659979844,3.11121,3214.2,3213.2,38.87432562]
[1737659980044,3.4533731,3214.3,3213.2,38.87432562]
[1737659980277,3.11129,3214.1,3213.2,38.87432562]
[1737659980774,3.11129,3214.1,3213.2,41.98640562]
[1737659980981,3.11129,3214.1,3213.2,38.87432562]
[1737659981189,0.38424495,3214.1,3213.2,0.7723]
[1737659981452,0.38424495,3214.1,3212.5,0.32091665]
[1737659981453,3.11177,3213.6,3212.5,0.32091665]
[1737659981694,3.11219,3213.2,3212.5,0.32091665]
[1737659981897,3.11226,3213.1,3212.5,7.71e-06]
[1737659982094,3.11219,3213.2,3212.5,7.71e-06]
[1737659982510,3.11219,3213.2,3212.5,3.11282771]
[1737659982791,3.11238,3213.0,3212.5,7.71e-06]
[1737659983354,3.11219,3213.2,3212.5,0.38792548]
[1737659983557,3.11201,3213.4,3212.6,3.11265]
[1737659983994,3.11213,3213.3,3212.7,35.0]
[1737659984196,3.11154,3213.9,3212.7,35.0]
[1737659984499,3.11212,3213.3,3212.7,38.11263]
[1737659984670,3.11212,3213.3,3212.8,3.10202562]
[1737659985555,3.11225,3213.2,3212.8,3.10202562]
[1737659986189,3.11232,3213.1,3212.8,3.10202562]
[1737659986702,3.11218,3213.2,3212.8,3.10202562]
[1737659987362,3.11218,3213.2,3212.7,35.0]
[1737659987563,3.11238,3213.0,3212.6,0.55]
[1737659987898,3.11231,3213.1,3212.6,0.55]
[1737659988100,3.11231,3213.1,3212.6,3.66273]
[1737659988256,3.91213,3213.5,3212.5,0.38792548]
[1737659988455,3.11235,3213.0,3212.5,7.71e-06]
[1737659989104,3.11252,3212.9,3212.5,7.71e-06]
[1737659989661,3.11274,3212.6,3212.5,7.71e-06]
[1737659990693,3.74931388,3212.6,3212.5,7.71e-06]
[1737659993705,3.74931388,3212.6,3211.6,0.8242]
[1737659993706,3.11284,3212.5,3211.6,0.58892572]
[1737659994008,0.63657388,3212.6,3210.2,0.85543045]
[1737659994009,3.11419,3211.1,3210.2,3.33827453]
[1737659994169,3.11419,3211.1,3210.2,0.22321453]
[1737659994369,3.90919,3211.1,3210.2,0.22321453]
[1737659995413,3.11497,3210.3,3210.2,0.22321453]
[1737659997884,0.795,3211.1,3210.2,0.22321453]
[1737659997885,3.11468,3210.6,3210.3,0.7624]
[1737659998082,3.11441,3210.9,3210.3,0.7624]
[1737659998083,3.74274989,3211.2,3210.3,0.7624]
[1737659998410,3.11487,3210.4,3210.2,0.22321453]
[1737659998572,3.11462,3210.7,3210.2,0.22321453]
[1737659998968,3.11462,3210.7,3210.3,35.0]
[1737659999605,3.1147,3210.6,3210.3,35.0]
[1737659999840,3.11439,3210.9,3210.3,35.0]
[1737660000136,3.1142,3211.1,3210.4,3.11482]
[1737660000288,3.1142,3211.1,3210.4,0.55]
[1737660000691,3.1142,3211.1,3210.2,0.22321453]
[1737660000692,3.11398,3211.4,3210.7,3.11452]
[1737660000989,3.11348,3211.9,3211.1,0.55]
[1737660001192,0.777,3212.7,3211.0,3.11429]
[1737660001193,3.94436774,3213.8,3211.6,0.55]
[1737660001449,3.11275,3212.6,3212.1,0.55]
[1737660001606,3.11324,3212.1,3211.7,35.0]
[1737660001805,3.11324,3212.1,3211.2,3.480519]
[1737660001993,3.11349,3211.9,3211.3,0.3480519]
[1737660002187,3.11303,3212.3,3211.4,0.55]
[1737660002431,3.11307,3212.3,3211.7,0.8149]
[1737660002743,3.11314,3212.2,3211.7,0.8149]
[1737660002891,3.1135,3211.9,3211.4,0.55]
[1737660003091,3.11271,3212.7,3211.4,0.72129519]
[1737660003291,3.11326,3212.1,3211.4,3.83518519]
[1737660003594,3.11326,3212.1,3211.5,3.11378]
[1737660004216,0.03891661,3212.0,3211.3,0.8149]
[1737660004413,3.11402,3211.3,3210.7,3.94585]
[1737660004709,3.11379,3211.6,3210.8,0.55]
[1737660004939,3.1138,3211.5,3210.8,0.55]
[1737660005095,3.1139,3211.4,3210.8,0.55]
[1737660005539,3.11379,3211.6,3210.8,0.55]
[1737660005737,3.11379,3211.6,3210.9,3.11437]
[1737660006008,3.11352,3211.8,3211.1,3.11418]
[1737660006499,3.11361,3211.7,3211.1,3.11418]
[1737660006715,3.11361,3211.7,3210.9,3.875394]
[1737660006716,3.11361,3211.7,3211.0,0.55]
[1737660007579,3.11403,3211.3,3210.7,0.8313]
[1737660007874,3.11403,3211.3,3210.7,3.94585]
[1737660008165,3.11392,3211.4,3210.8,0.55]
[1737660008565,3.11313,3212.2,3210.7,0.8313]
[1737660008892,3.94436774,3211.8,3210.3,0.7652]
[1737660009046,3.94436774,3211.3,3210.3,0.7652]
[1737660009248,3.94436774,3211.8,3210.4,0.58114657]
[1737660009555,0.786,3212.0,3210.4,0.58114657]
[1737660009556,3.11342,3211.9,3211.0,3.11425]
[1737660009728,3.11342,3211.9,3211.2,0.793]
[1737660009925,3.11324,3212.1,3211.3,3.11399]
[1737660010130,3.11377,3211.6,3211.2,0.793]
[1737660010376,3.11355,3211.8,3211.2,0.793]
[1737660010574,3.114,3211.3,3211.2,0.793]
[1737660010743,3.11399,3211.4,3210.7,0.7583]
[1737660010944,3.11427,3211.1,3210.7,0.7583]
[1737660011279,0.7654,3211.6,3210.2,0.99431453]
[1737660011436,3.11432,3211.0,3210.2,4.57530998]
[1737660011635,3.1138,3211.5,3210.2,4.57530998]
[1737660011831,3.11457,3210.8,3210.2,1.46025998]
[1737660012033,3.11457,3210.8,3210.2,4.57531998]
[1737660012283,3.11486,3210.5,3210.2,1.46025998]
[1737660012439,3.11461,3210.7,3210.2,0.99431453]
[1737660013129,0.03893333,3210.8,3210.2,0.99431453]
[1737660013490,3.11497,3210.3,3210.2,0.22321453]
[1737660013788,3.11484,3210.5,3210.2,0.22321453]
[1737660013953,3.11455,3210.8,3210.2,0.22321453]
[1737660014302,3.11484,3210.5,3210.2,0.22321453]
[1737660015000,3.11427,3211.1,3210.2,0.22321453]
[1737660015217,3.11497,3210.3,3210.2,0.22321453]
[1737660016260,3.11497,3210.3,3210.2,4.53e-06]
[1737660016261,7.05933774,3210.3,3210.2,4.53e-06]
[1737660016700,10.05933774,3210.3,3210.2,4.53e-06]
[1737660016862,7.05933774,3210.3,3210.2,4.53e-06]
[1737660018214,10.05933774,3210.3,3210.2,4.53e-06]
[1737660018382,6.92476,3210.1,3210.0,4.53e-06]
[1737660018840,7.67476,3210.1,3210.0,4.53e-06]
[1737660019319,3.11642,3208.8,3208.7,0.22269694]
[1737660019888,3.2379029,3208.8,3208.7,0.22269694]
[1737660020092,3.5493299,3208.8,3208.7,0.22269694]
[1737660021117,3.2379029,3208.8,3208.7,0.22269694]
[1737660021377,0.1214829,3208.8,3208.7,0.22269694]
[1737660022446,0.1214829,3208.8,3208.7,0.25386076]
[1737660022658,0.1214829,3208.8,3208.7,3.88921694]
[1737660022958,3.11565,3209.6,3209.1,0.55]
[1737660023251,3.11592,3209.4,3208.7,0.22269694]
[1737660023429,3.11567,3209.6,3208.8,0.33393169]
[1737660023634,0.20247151,3210.0,3209.4,3.11584]
[1737660023836,0.20247151,3210.0,3209.3,0.55]
[1737660023837,0.20247151,3210.0,3209.3,3.11591]
[1737660024342,3.11536,3209.9,3209.4,0.58435548]
[1737660024537,3.11555,3209.8,3209.4,0.03435548]
[1737660024908,3.11552,3209.8,3209.2,0.7708]
[1737660025113,3.11558,3209.7,3209.5,0.03259486]
[1737660025356,3.11492,3210.4,3209.2,0.7708]
[1737660025357,3.11542,3209.9,3209.2,3.88683]
[1737660025510,0.7659,3209.9,3209.6,0.03254172]
[1737660025716,3.11521,3210.1,3208.9,3.93768]
[1737660025946,3.1157,3209.6,3208.9,0.8214]
[1737660026552,3.11619,3209.1,3208.9,0.8214]
[1737660026735,3.11619,3209.1,3208.7,0.22269694]
[1737660027250,3.11619,3209.1,3208.7,0.68455063]
[1737660027477,0.6273786,3209.5,3208.7,0.22269694]
[1737660027637,3.11625,3209.0,3208.7,0.22269694]
[1737660028262,3.11616,3209.1,3208.7,0.22269694]
[1737660028620,3.11604,3209.2,3208.7,0.22269694]
[1737660029063,3.11614,3209.1,3208.7,0.22269694]
[1737660029263,3.11604,3209.2,3208.7,0.22269694]
[1737660029664,3.11615,3209.1,3208.7,0.22269694]
[1737660029866,0.8061,3209.8,3208.7,0.22269694]
[1737660029867,3.11539,3209.9,3209.2,0.7539]
[1737660030052,3.11553,3209.8,3209.2,3.86986]
[1737660030255,3.11552,3209.8,3209.2,0.7539]
[1737660030453,3.15455577,3209.7,3209.2,0.7539]
[1737660030764,3.11553,3209.8,3209.2,0.7539]
[1737660031169,3.7459416,3209.8,3209.2,0.7539]
[1737660031524,3.11489,3210.4,3209.8,3.11544]
[1737660031729,0.62885318,3210.6,3210.1,3.11516]
[1737660032046,3.11427,3211.1,3210.5,3.11477]
[1737660032229,3.11427,3211.1,3210.0,0.55]
[1737660032230,0.622839,3211.1,3210.0,0.55]
[1737660032448,3.11458,3210.7,3210.6,0.06514111]
[1737660032783,3.1161,3209.2,3208.8,0.785]
[1737660032987,3.1159,3209.4,3208.8,0.785]
[1737660032988,3.11593,3209.4,3208.8,0.785]
[1737660033142,3.11594,3209.3,3208.9,0.05932179]
[1737660033351,3.11563,3209.7,3208.9,3.17563179]
[1737660033575,3.11563,3209.7,3209.1,3.1161]
[1737660033897,3.11567,3209.6,3208.9,0.05932179]
[1737660034043,3.15479058,3209.5,3208.8,0.785]
[1737660034245,3.11642,3208.8,3208.7,0.22269694]
[1737660035788,3.739695,3208.8,3208.7,0.22269694]
[1737660036184,3.11642,3208.8,3208.7,0.22269694]
[1737660039426,3.11624,3209.0,3208.7,0.22269694]
[1737660039586,3.11635,3208.9,3208.7,0.22269694]
[1737660040215,0.8016,3209.7,3208.7,0.22269694]
[1737660040216,3.11572,3209.6,3208.9,3.11627]
[1737660040384,3.11639,3208.9,3208.7,0.22269694]
[1737660040587,3.93427563,3208.8,3208.7,0.22269694]
[1737660040789,3.89532,3208.8,3208.7,0.22269694]
[1737660041496,4.08978813,3208.8,3208.7,0.22269694]
[1737660041696,3.43243071,3208.8,3208.7,0.22269694]
[1737660042423,0.31601071,3208.8,3208.7,0.22269694]
[1737660042609,0.31601071,3208.8,3208.7,1.04959694]
[1737660042952,3.77565578,3208.8,3208.7,0.22269694]
[1737660043597,3.45964507,3208.8,3208.7,0.22269694]
[1737660043996,3.11642,3208.8,3208.7,0.22269694]
[1737660044203,3.15538111,3208.8,3208.7,0.22269694]
[1737660044429,3.11642,3208.8,3208.7,0.22269694]
[1737660045001,3.99576258,3208.8,3208.7,0.22269694]
[1737660045341,7.99303777,3208.8,3208.7,6.94e-06]
[1737660045547,7.95407257,3208.8,3208.7,6.94e-06]
[1737660046744,8.14887516,3208.8,3208.7,6.94e-06]
[1737660047301,4.19056517,3208.8,3208.7,6.94e-06]
[1737660048906,6.23413,3208.2,3207.8,0.1640512]
[1737660049105,3.11687,3208.4,3207.9,3.1173]
[1737660049307,3.11598,3209.3,3208.7,3.11647]
[1737660049538,3.11575,3209.5,3208.8,0.85275982]
[1737660049848,3.11575,3209.5,3209.0,3.1162]
[1737660050049,3.11575,3209.5,3208.9,0.55]
[1737660050230,0.61743484,3210.1,3209.1,0.05295312]
[1737660050547,0.12176328,3209.4,3209.0,3.1162]
[1737660050852,0.12176328,3209.4,3209.3,3.66594]
[1737660051059,0.12176328,3209.4,3209.3,4.4582925]
[1737660051355,0.12176328,3209.4,3209.3,4.51064305]
[1737660052172,3.11424,3211.1,3210.4,0.55]
[1737660052309,3.11361,3211.7,3210.6,3.92538]
[1737660052560,0.7572,3212.3,3211.2,3.90886]
[1737660052759,3.11309,3212.3,3211.6,3.1137]
[1737660052966,3.11325,3212.1,3211.5,0.55]
[1737660053306,8.51396975,3212.8,3211.5,0.55]
[1737660053307,3.11284,3212.5,3211.6,0.04897195]
[1737660053615,3.1133,3212.1,3211.6,0.04897195]
[1737660053773,3.11305,3212.3,3211.6,3.16266195]
[1737660053974,0.8054,3213.5,3212.0,3.66326]
[1737660054300,3.11265,3212.7,3212.1,0.7948]
[1737660054477,0.64998392,3213.2,3212.1,0.84307664]
[1737660054683,3.11293,3212.5,3212.1,0.7948]
[1737660054978,3.11313,3212.2,3212.1,0.7948]
[1737660055300,3.11339,3212.0,3211.6,0.7948]
[1737660055505,3.11353,3211.8,3211.7,0.04841792]
[1737660056502,3.11397,3211.4,3211.1,0.8078]
[1737660056686,3.11372,3211.6,3211.2,0.04865399]
[1737660056889,3.11351,3211.8,3211.3,0.55]
[1737660057074,3.11351,3211.8,3211.2,0.04865399]
[1737660057075,3.1136,3211.8,3211.2,0.04865399]
[1737660057285,3.95830999,3214.5,3212.0,0.55]
[1737660057604,3.95830999,3214.5,3211.9,0.8073]
[1737660057605,3.11107,3214.4,3213.1,0.8073]
[1737660057814,3.11052,3214.9,3213.1,0.8073]
[1737660057815,3.11163,3213.8,3213.1,0.8073]
[1737660058113,0.03889593,3213.7,3213.1,0.8073]
[1737660058419,3.11189,3213.5,3213.2,0.04782617]
[1737660058764,3.11204,3213.4,3213.2,0.04782617]
[1737660059069,3.11204,3213.4,3213.3,0.047779]
[1737660059565,3.11217,3213.2,3212.5,3.11281]
[1737660059919,3.11227,3213.1,3212.3,3.11297]
[1737660060066,3.11227,3213.1,3212.6,0.04651501]
[1737660060268,3.11227,3213.1,3212.4,3.66292]
[1737660060676,3.11227,3213.1,3211.5,0.25]
[1737660060677,3.1129,3212.5,3211.1,6.5]
[1737660060864,3.11294,3212.4,3211.6,3.11366]
[1737660061093,3.11309,3212.3,3211.6,3.11366]
[1737660061279,3.1129,3212.5,3211.7,3.11357]
[1737660061475,3.1129,3212.5,3211.8,0.55]
[1737660061476,3.11294,3212.4,3211.8,0.55]
[1737660061678,0.622584,3212.4,3210.6,4.49530999]
[1737660061912,3.11369,3211.7,3211.0,0.7915]
[1737660062099,3.1134,3212.0,3211.0,0.7915]
[1737660062299,6.11238,3213.0,3211.0,0.7915]
[1737660062300,3.11245,3212.9,3211.4,3.11384]
[1737660062533,3.11305,3212.3,3211.5,0.55]
[1737660062669,3.11397,3211.4,3211.0,0.7915]
[1737660062864,3.11373,3211.6,3211.0,0.7915]
[1737660063100,0.7892,3212.6,3211.3,3.11392]
[1737660063286,3.11284,3212.5,3211.5,3.11375]
[1737660063579,3.11369,3211.7,3211.0,0.7915]
[1737660063809,3.0,3212.1,3210.4,3.11485]
[1737660063967,3.1142,3211.1,3210.2,3.11504]
[1737660064163,3.11444,3210.9,3210.2,3.11497]
[1737660064368,3.11444,3210.9,3210.2,3.426467]
[1737660064679,3.11444,3210.9,3210.3,0.55]
[1737660064902,3.11444,3210.9,3210.3,3.11495]
[1737660065082,3.1145,3210.8,3210.2,0.311497]
[1737660065281,3.1145,3210.8,3209.7,3.4888]
[1737660065282,3.1145,3210.8,3209.8,3.11545]
[1737660065867,3.1145,3210.8,3210.0,3.11525]
[1737660066068,3.11477,3210.6,3209.6,3.11562]
[1737660066286,0.7965,3211.0,3209.3,3.11588]
[1737660066287,3.11522,3210.1,3209.3,3.11588]
[1737660066516,0.7965,3211.0,3209.3,3.11594]
[1737660066722,3.95830999,3211.6,3209.4,3.4707303]
[1737660066723,3.11425,3211.1,3209.4,3.4707303]
[1737660067013,0.805,3211.4,3210.5,0.55]
[1737660067226,3.11448,3210.9,3210.5,0.55]
[1737660067372,3.11437,3211.0,3210.6,0.04141182]
[1737660067614,3.11409,3211.3,3210.6,0.04141182]
[1737660067814,3.11422,3211.1,3210.6,0.04141182]
[1737660068013,3.11409,3211.3,3210.6,0.04141182]
[1737660068014,3.114,3211.3,3210.6,0.04141182]
[1737660068214,3.11448,3210.9,3210.6,0.04141182]
[1737660068658,3.11351,3211.8,3210.7,0.55]
[1737660068860,0.8069,3213.0,3211.7,0.55]
[1737660069019,3.11271,3212.7,3211.9,3.11342]
[1737660069221,3.11281,3212.6,3212.0,0.55]
[1737660069550,3.11297,3212.4,3212.0,0.04063486]
[1737660069757,3.11322,3212.1,3212.0,0.04063486]
[1737660069915,3.11322,3212.1,3211.4,3.11386]
[1737660070118,3.11303,3212.3,3211.7,3.11361]
[1737660070380,3.11303,3212.3,3211.8,0.59067858]
[1737660070535,3.11281,3212.6,3211.8,0.59067858]
[1737660070713,3.11288,3212.5,3211.8,0.59067858]
[1737660070918,3.11254,3212.8,3211.8,0.96109844]
[1737660071118,3.11342,3211.9,3211.8,0.04067858]
[1737660071312,3.11323,3212.1,3211.4,0.55]
[1737660071552,3.11281,3212.6,3211.7,0.55]
[1737660071854,3.11281,3212.6,3211.9,0.55]
[1737660072055,3.11318,3212.2,3211.8,0.04067858]
[1737660072244,3.11318,3212.2,3211.3,0.8037]
[1737660072245,3.11322,3212.1,3212.0,0.04058417]
[1737660072444,3.11332,3212.0,3211.9,0.04063138]
[1737660072759,3.11322,3212.1,3211.4,0.55]
[1737660072961,3.11322,3212.1,3211.6,0.55]
[1737660073160,3.11286,3212.5,3211.8,3.1135]
[1737660073361,3.11275,3212.6,3212.0,0.55]
[1737660073661,0.8069,3213.0,3212.0,0.55]
[1737660073843,3.11236,3213.0,3212.4,0.7838]
[1737660074054,3.11218,3213.2,3212.5,3.66274]
[1737660074369,3.1113,3214.1,3213.3,3.11205]
[1737660074533,3.1113,3214.1,3212.5,0.04034821]
[1737660074534,3.11052,3214.9,3213.5,0.7691]
[1737660074736,1.63736941,3215.7,3214.3,3.11109]
[1737660074936,3.11084,3214.6,3214.4,0.03918459]
[1737660075149,3.11101,3214.4,3214.0,0.7691]
[1737660075350,3.11126,3214.2,3214.0,0.7691]
[1737660075562,3.11168,3213.7,3213.4,0.7832]
[1737660075748,0.311101,3214.4,3213.4,0.7832]
[1737660075951,3.11131,3214.1,3213.4,0.7832]
[1737660076273,3.11141,3214.0,3213.4,0.7832]
[1737660076474,3.11141,3214.0,3213.5,0.55]
[1737660076775,0.8215,3214.8,3213.5,3.66186]
[1737660077076,3.11101,3214.4,3213.6,3.66176]
[1737660077277,0.622183,3214.4,3213.5,0.55]
[1737660077576,3.11121,3214.2,3213.7,0.55]
[1737660077738,3.11121,3214.2,3213.5,3.66183]
[1737660078073,3.11111,3214.3,3213.7,0.55]
[1737660078240,3.11119,3214.2,3213.7,0.55]
[1737660078438,3.11106,3214.4,3213.7,0.55]
[1737660079039,0.8215,3214.8,3213.5,0.55]
[1737660079239,3.11121,3214.2,3213.5,3.11186]
[1737660079476,3.11121,3214.2,3213.6,0.55]
[1737660079852,3.11121,3214.2,3213.5,0.55]
[1737660080050,3.11141,3214.0,3213.5,0.55]
[1737660080290,3.11148,3213.9,3213.4,0.7832]
[1737660080494,3.11175,3213.7,3213.4,0.7832]
[1737660080697,3.11148,3213.9,3213.5,0.55]
[1737660080843,3.1117,3213.7,3213.4,0.7832]
[1737660081048,3.11185,3213.6,3213.4,0.7832]
[1737660081477,3.11185,3213.6,3213.5,0.03987724]
[1737660082791,3.11185,3213.6,3213.0,0.55]
[1737660083089,3.11187,3213.6,3213.5,0.03987724]
[1737660083685,3.11187,3213.5,3213.0,0.55]
[1737660084992,3.11181,3213.6,3212.9,0.7554]
[1737660085192,3.11269,3212.7,3212.4,0.7554]
[1737660085350,0.311187,3213.5,3211.5,6.5]
[1737660085351,3.113,3212.4,3212.0,0.7733]
[1737660085551,3.11298,3212.4,3212.0,0.7733]
[1737660085749,0.311187,3213.5,3212.4,3.11287]
[1737660085966,0.8205,3213.8,3212.7,3.11256]
[1737660086288,3.1117,3213.7,3213.0,3.66234]
[1737660086492,3.1117,3213.7,3212.9,0.7706]
[1737660086493,3.11148,3213.9,3213.2,0.55]
[1737660086654,3.11113,3214.3,3213.4,0.55]
[1737660086849,3.11113,3214.3,3213.7,0.55]
[1737660087054,3.11106,3214.4,3213.9,0.55]
[1737660087289,1.5462,3214.7,3214.1,0.55]
[1737660087290,3.86077,3214.7,3214.1,0.55]
[1737660087495,0.75,3214.7,3214.4,0.55]
[1737660087654,0.75,3214.7,3214.6,4.4314]
[1737660088278,0.75,3214.7,3214.6,7.4314]
[1737660088484,0.75,3214.7,3214.6,8.485622]
[1737660088655,0.35507519,3216.4,3215.8,0.55]
[1737660088855,0.35507519,3216.4,3214.7,3.0]
[1737660088856,0.35507519,3216.4,3216.0,0.55]
[1737660089052,0.35507519,3216.4,3216.0,3.65944]
[1737660089295,6.21749,3216.8,3215.9,3.88009]
[1737660089496,3.10887,3216.6,3216.0,1.248972]
[1737660089796,3.10894,3216.6,3215.9,0.7706]
[1737660090002,7.06675999,3217.1,3215.9,0.7706]
[1737660090252,3.10911,3216.4,3215.9,0.7706]
[1737660090430,3.10942,3216.1,3215.4,3.91132]
[1737660090752,3.10857,3217.0,3215.9,3.10947]
[1737660091047,3.95830999,3217.6,3216.4,3.10906]
[1737660091207,3.95830999,3217.6,3216.0,0.310947]
[1737660091208,3.10849,3217.0,3216.1,3.65935]
[1737660091550,3.10912,3216.4,3216.0,0.310947]
[1737660091699,3.10917,3216.3,3215.7,0.8013]
[1737660091893,3.10917,3216.3,3215.8,0.55]
[1737660092137,3.10867,3216.8,3215.8,0.55]
[1737660092337,3.10925,3216.3,3215.8,0.55]
[1737660092600,3.10867,3216.8,3215.3,0.549]
[1737660092601,3.10982,3215.7,3215.3,0.549]
[1737660092822,6.89852,3216.5,3214.7,3.1107]
[1737660093011,3.11039,3215.1,3214.7,0.807]
[1737660093432,3.11031,3215.2,3214.7,0.807]
[1737660094209,3.7895,3216.5,3214.8,0.55]
[1737660094416,3.10987,3215.6,3214.9,3.11051]
[1737660094744,3.89848,3216.5,3214.8,0.55]
[1737660094745,3.11003,3215.4,3214.8,0.55]
[1737660094948,3.10984,3215.6,3214.8,3.557318]
[1737660095247,3.10934,3216.2,3215.4,0.55]
[1737660095445,3.10934,3216.2,3214.9,35.0]
[1737660095446,3.10945,3216.0,3215.2,3.11015]
[1737660095634,6.10884,3216.7,3215.2,3.11015]
[1737660095635,3.95830999,3217.1,3215.3,0.55]
[1737660095829,3.95830999,3217.1,3215.0,3.11041]
[1737660095830,3.10958,3215.9,3215.0,3.11041]
[1737660096009,3.10993,3215.5,3215.4,5.0]
[1737660096209,3.10983,3215.7,3215.4,5.0]
[1737660096405,3.10985,3215.6,3215.4,5.0]
[1737660096606,3.10993,3215.5,3215.4,5.0]
[1737660098234,3.22796589,3215.5,3215.4,5.0]
[1737660098551,3.86174548,3215.5,3215.4,5.0]
[1737660099953,3.86174548,3215.5,3213.6,0.7907]
[1737660099954,3.11109,3214.3,3213.6,0.7907]
[1737660100155,3.11167,3213.7,3213.6,0.7907]
[1737660100460,3.11167,3213.7,3213.0,35.7907]
[1737660100638,3.11167,3213.7,3213.6,0.03021]
[1737660100816,3.11196,3213.5,3213.0,37.53188839]
[1737660101213,3.95830999,3215.1,3213.0,2.53188839]
[1737660101446,1.52447025,3218.0,3212.3,4.49730999]
[1737660101447,3.88507,3215.0,3213.6,3.11174]
[1737660101643,3.11022,3215.2,3213.9,0.55]
[1737660101875,3.1102,3215.3,3214.1,0.55]
[1737660102073,3.11039,3215.1,3214.5,3.11089]
[1737660102273,3.11012,3215.4,3214.8,0.8049]
[1737660102478,3.95830999,3216.1,3214.9,0.55]
[1737660102786,3.10965,3215.8,3215.1,3.11026]
[1737660102959,3.11013,3215.3,3215.0,35.0]
[1737660103155,3.11032,3215.1,3214.8,0.8049]
[1737660103392,3.11013,3215.3,3214.8,0.8049]
[1737660103600,3.10997,3215.5,3214.8,1.196469]
[1737660103897,3.11029,3215.2,3214.8,0.8049]
[1737660104044,3.11049,3215.0,3214.8,0.8049]
[1737660104685,0.87361318,3215.4,3214.4,0.8201]
[1737660104885,3.11035,3215.1,3214.4,3.93102]
[1737660105088,3.11012,3215.3,3214.5,0.55]
[1737660105390,3.11054,3214.9,3214.5,0.55]
[1737660105892,3.11037,3215.1,3214.5,0.55]
[1737660106050,3.22272318,3215.2,3214.5,0.55]
[1737660106401,3.11051,3215.0,3214.5,0.55]
[1737660106601,3.22271318,3215.2,3214.5,0.55]
[1737660106765,3.11033,3215.1,3214.5,0.55]
[1737660107087,3.11013,3215.3,3214.7,3.1107]
[1737660107443,3.10947,3216.0,3215.3,3.11012]
[1737660107641,0.7997,3216.4,3215.2,0.8164]
[1737660107879,3.10916,3216.3,3215.2,0.8164]
[1737660108088,3.11,3215.5,3215.2,0.8164]
[1737660108400,3.10956,3215.9,3215.2,0.8164]
[1737660108600,3.10956,3215.9,3215.2,4.319278]
[1737660108745,3.10956,3215.9,3215.3,0.55]
[1737660108940,0.11248704,3216.2,3215.8,3.65958]
[1737660109173,0.11248704,3216.2,3215.9,3.10953]
[1737660109382,0.11248704,3216.2,3216.0,0.7554]
[1737660109558,0.11248704,3216.2,3215.4,0.7554]
[1737660109762,0.7776,3216.1,3214.7,3.11064]
[1737660109987,3.10991,3215.6,3214.6,0.7554]
[1737660110189,0.7776,3216.1,3215.0,3.11041]
[1737660110483,3.10945,3216.0,3215.3,0.55]
[1737660110685,3.10965,3215.8,3215.3,0.55]
[1737660110888,3.10945,3216.0,3214.6,0.7554]
[1737660111098,3.11036,3215.1,3214.6,0.7554]
[1737660111254,3.11042,3215.0,3214.6,0.7554]
[1737660111455,3.11071,3214.7,3214.6,0.7554]
[1737660111680,3.11081,3214.6,3214.1,3.88066]
[1737660111998,3.11073,3214.7,3214.1,1.468607]
[1737660112291,3.11052,3214.9,3214.1,4.579827]
[1737660112587,3.11069,3214.8,3214.2,0.55]
[1737660112799,3.11104,3214.4,3214.1,0.7694]
[1737660112972,3.11113,3214.3,3213.7,3.8703]
[1737660113167,3.11134,3214.1,3213.7,0.7587]
[1737660113369,3.1116,3213.8,3213.3,0.7587]
[1737660113795,3.11167,3213.7,3213.3,0.7587]
[1737660113982,3.11142,3214.0,3213.3,0.7587]
[1737660114301,3.11152,3213.9,3213.3,0.7587]
[1737660114455,3.1116,3213.8,3213.3,0.7587]
[1737660114658,3.95830999,3214.6,3213.3,0.7587]
[1737660114900,3.95830999,3214.6,3212.7,35.0]
[1737660114901,3.11211,3213.3,3212.9,0.7665]
[1737660115096,3.11201,3213.4,3212.9,0.7665]
[1737660115297,3.11197,3213.4,3212.9,0.7665]
[1737660115501,3.11181,3213.6,3213.0,0.03107179]
[1737660115661,3.11198,3213.4,3213.0,0.03107179]
[1737660116066,3.11177,3213.6,3213.0,3.69335179]
[1737660116266,3.11177,3213.6,3213.0,4.13933697]
[1737660116575,3.11225,3213.1,3213.0,0.03107179]
[1737660116960,3.11225,3213.1,3212.7,0.55]
[1737660117161,3.11225,3213.1,3212.8,0.02905148]
[1737660117362,3.11164,3213.8,3212.7,0.55]
[1737660117591,3.88495,3214.0,3212.8,0.02905148]